fUST/lending_fUST_20250724
["ID","MTS","AMOUNT","RATE_DAILY","PERIOD"]
[374531543,1753339860441,-460.0,0.00023287,2]
[374531544,1753339860451,-577.62,0.00023287,2]
[374531545,1753339860460,-519.99,0.00023287,2]
[374531546,1753339860470,-562.52,0.00023287,2]
[374531547,1753339860480,-636.5,0.00023287,2]
[374531548,1753339860490,-1185.86,0.00023287,2]
[374531549,1753339860499,-151.0,0.00023288,7]
[374531550,1753339860507,-708.0,0.00023288,2]
[374531551,1753339860518,-588.0,0.00023288,2]
[374531552,1753339860528,-3283.08947726,0.00023363,2]
[374531553,1753339860538,-516.3,0.00023372,4]
[374531554,1753339860547,-813.3457251,0.000234,2]
[374531555,1753339860557,-395.75,0.0002346,2]
[374531556,1753339860569,-636.0,0.00023463,6]
[374531557,1753339860579,-516.3,0.00023472,3]
[374531558,1753339860590,-198.0,0.00023498,2]
[374531559,1753339860600,-10200.67,0.000235,7]
[374531560,1753339860609,-2087.81,0.000235,7]
[374531561,1753339860619,-460.0,0.00023561,2]
[374531562,1753339860629,-1451.18,0.00023561,2]
[374531563,1753339860638,-151.0,0.00023561,7]
[374531564,1753339860648,-151.0,0.00023561,7]
[374531565,1753339860658,-570.06,0.00023561,2]
[374531566,1753339860667,-460.0,0.00023561,2]
[374531567,1753339860677,-2163.22,0.00023561,2]
[374531568,1753339860686,-827.64,0.00023561,2]
[374531569,1753339860696,-899.11,0.00023561,2]
[374531570,1753339860706,-460.0,0.00023561,2]
[374531571,1753339860715,-576.91,0.00023561,2]
[374531572,1753339860724,-460.0,0.00023561,2]
[374531573,1753339860734,-577.62,0.00023561,2]
[374531574,1753339860743,-519.99,0.00023561,2]
[374531575,1753339860753,-562.52,0.00023561,2]
[374531576,1753339860763,-636.5,0.00023561,2]
[374531577,1753339860772,-1185.86,0.00023561,2]
[374531578,1753339860782,-708.0,0.00023562,2]
[374531579,1753339860791,-588.0,0.00023562,2]
[374531580,1753339860800,-516.34463491,0.00023572,5]
[374531581,1753339860810,-3283.08947726,0.00023818,2]
[374531582,1753339860824,-636.0,0.00023822,6]
[374531583,1753339860834,-198.0,0.00023828,2]
[374531584,1753339860844,-460.0,0.00023835,2]
[374531585,1753339860853,-1451.18,0.00023835,2]
[374531586,1753339860863,-570.06,0.00023835,2]
[374531587,1753339860873,-460.0,0.00023835,2]
[374531588,1753339860882,-2163.22,0.00023835,2]
[374531589,1753339860891,-827.64,0.00023835,2]
[374531590,1753339860901,-899.11,0.00023835,2]
[374531591,1753339860911,-460.0,0.00023835,2]
[374531592,1753339860920,-576.91,0.00023835,2]
[374531593,1753339860930,-460.0,0.00023835,2]
[374531594,1753339860939,-577.62,0.00023835,2]
[374531595,1753339860949,-519.99,0.00023835,2]
[374531596,1753339860958,-562.52,0.00023835,2]
[374531597,1753339860967,-636.5,0.00023835,2]
[374531598,1753339860976,-1185.86,0.00023835,2]
[374531599,1753339860985,-708.0,0.00023836,2]
[374531600,1753339860994,-588.0,0.00023836,2]
[374531601,1753339861004,-151.0,0.00023836,7]
[374531602,1753339861013,-268.345587,0.00023836,7]
[374531603,1753339861023,-548.28386372,0.00023845,2]
[374531604,1753339861032,-150.0,0.000239,5]
[374531605,1753339861042,-632.99252101,0.000239,2]
[374531606,1753339861052,-3283.08947726,0.00023941,2]
[374531607,1753339861062,-149.926599,0.00023949,2]
[374531608,1753339861075,-149.926599,0.0002395,7]
[374531609,1753339861084,-151.0,0.00023989,7]
[374531610,1753339861093,-151.0,0.00023989,7]
[374531611,1753339861103,-452.911147,0.00023989,7]
[374531612,1753339861112,-452.911147,0.00023989,7]
[374531613,1753339861122,-151.0,0.00023989,7]
[374531614,1753339861131,-151.0,0.00023989,7]
[374531615,1753339861141,-199.260206,0.00023989,7]
[374531616,1753339861149,-199.260206,0.00023989,7]
[374531617,1753339861158,-151.0,0.00023989,7]
[374531618,1753339861167,-151.0,0.0002399,7]
[374531619,1753339861177,-151.0,0.0002399,7]
[374531620,1753339861186,-151.0,0.0002399,7]
[374531621,1753339861195,-3270.13,0.00023998,10]
[374531622,1753339861205,-151.0,0.00024,7]
[374531623,1753339861215,-151.0,0.00024,7]
[374531624,1753339861224,-151.0,0.00024,7]
[374531625,1753339861233,-151.0,0.00024,7]
[374531626,1753339861243,-151.0,0.00024,7]
[374531627,1753339861253,-151.0,0.00024,7]
[374531628,1753339861262,-200.0,0.00024,2]
[374531629,1753339861271,-151.0,0.00024,10]
[374531630,1753339861281,-151.0,0.00024,7]
[374531631,1753339861290,-585.705489,0.00024,7]
[374531632,1753339861300,-585.705489,0.00024,7]
[374531633,1753339861310,-151.0,0.00024,7]
[374531634,1753339861323,-151.0,0.00024,7]
[374531635,1753339861332,-2784.6397749,0.00024,2]
[374531636,1753339861341,-160.0,0.00024,7]
[374531637,1753339861350,-362.931082,0.00024009,8]
[374531638,1753339861360,-198.0,0.0002403,2]
[374531639,1753339861370,-2200.0,0.00024052,2]
[374531640,1753339861379,-500.0,0.00024069,2]
[374531641,1753339861389,-500.0,0.00024098,2]
[374531642,1753339861398,-460.0,0.00024109,2]
[374531643,1753339861408,-1451.18,0.00024109,2]
[374531644,1753339861418,-570.06,0.00024109,2]
[374531645,1753339861429,-460.0,0.00024109,2]
[374531646,1753339861441,-2163.22,0.00024109,2]
[374531647,1753339861450,-827.64,0.00024109,2]
[374531648,1753339861459,-899.11,0.00024109,2]
[374531649,1753339861468,-460.0,0.00024109,2]
[374531650,1753339861478,-576.91,0.00024109,2]
[374531651,1753339861488,-564.99968279,0.00024109,2]
[374531652,1753339861497,-577.62,0.00024109,2]
[374531653,1753339861507,-519.99,0.00024109,2]
[374531654,1753339861517,-562.52,0.00024109,2]
[374531655,1753339861527,-636.5,0.00024109,2]
[374531656,1753339861536,-1185.86,0.00024109,2]
[374531657,1753339861546,-708.0,0.0002411,2]
[374531658,1753339861555,-588.0,0.0002411,2]
[374531659,1753339861565,-500.0,0.00024164,2]
[374531660,1753339861580,-395.75,0.0002418,2]
[374531661,1753339861590,-636.0,0.00024182,6]
[374531662,1753339861600,-159.9507963,0.00024192,2]
[374531663,1753339861610,-198.0,0.00024221,2]
[374531664,1753339861620,-198.0,0.00024223,2]
[374531665,1753339861630,-149.926599,0.00024237,10]
[374531666,1753339861640,-1086.70693008,0.0002425,7]
[374531667,1753339861649,-500.0,0.00024256,2]
[374531668,1753339861659,-5000.0,0.00024284,30]
[374531669,1753339861668,-1098.93953694,0.00024284,30]
[374531670,1753339861780,-3901.06046306,0.00024284,30]
[374531671,1753339861789,-500.0,0.00024314,2]
[374531672,1753339861799,-3283.0894773,0.00024317,2]
[374531673,1753339861808,-149.926599,0.0002434,8]
[374531674,1753339861820,-500.0,0.00024352,2]
[374531675,1753339861830,-198.0,0.00024375,2]
[374531676,1753339861839,-460.0,0.00024383,2]
[374531677,1753339861849,-1451.18,0.00024383,2]
[374531678,1753339861941,-570.06,0.00024383,2]
[374531679,1753339861952,-460.0,0.00024383,2]
[374531680,1753339861962,-2163.22,0.00024383,2]
[374531681,1753339861972,-827.64,0.00024383,2]
[374531682,1753339861981,-899.11,0.00024383,2]
[374531683,1753339861990,-460.0,0.00024383,2]
[374531684,1753339862000,-576.91,0.00024383,2]
[374531685,1753339862009,-577.62,0.00024383,2]
[374531686,1753339862019,-519.99,0.00024383,2]
[374531687,1753339862028,-562.52,0.00024383,2]
[374531688,1753339862037,-636.5,0.00024383,2]
[374531689,1753339862047,-1185.86,0.00024383,2]
[374531690,1753339862056,-708.0,0.00024384,2]
[374531691,1753339862066,-588.0,0.00024384,2]
[374531692,1753339862077,-219.205835,0.00024384,7]
[374531693,1753339862088,-219.205835,0.00024384,7]
[374531694,1753339862098,-2125.87120444,0.000244,2]
[374531695,1753339862107,-151.0,0.000244,7]
[374531696,1753339862118,-207.44820083,0.000244,7]
[374531697,1753339862127,-11737.0922854,0.000244,2]
[374531698,1753339862137,-151.0,0.000244,7]
[374531699,1753339862147,-149.926599,0.00024425,7]
[374531700,1753339862156,-250.0,0.00024427,2]
[374531701,1753339862166,-429.7456075,0.00024466,2]
[374531702,1753339862176,-429.7456075,0.00024466,2]
[374531703,1753339862186,-429.7456075,0.00024466,2]
[374531704,1753339862195,-153.0,0.00024466,2]
[374531705,1753339862205,-150.0,0.00024473,2]
[374531706,1753339862215,-500.0,0.00024482,2]
[374531707,1753339862225,-2961.40032091,0.000245,2]
[374531708,1753339862235,-3998.05447974,0.000245,4]
[374531709,1753339862246,-488559.03817591,0.000245,4]
[374531710,1753339862258,-6639.45300242,0.000245,4]
[374531711,1753339862270,-22298.06077932,0.000245,4]
[374531712,1753339862282,-9580.46535449,0.000245,4]
[374531713,1753339862294,-1134.9999536,0.000245,4]
[374531714,1753339862306,-1074.0,0.000245,4]
[374531715,1753339862376,-1169.35731468,0.000245,4]
[374531716,1753339862442,-22388.99999601,0.000245,4]
[374531717,1753339862453,-22835.90140654,0.000245,4]
[374531718,1753339862465,-5933.07046648,0.000245,4]
[374531719,1753339862476,-2438.03100008,0.000245,4]
[374531720,1753339862489,-1485.21024454,0.000245,4]
[374531721,1753339862501,-70733.41036001,0.000245,4]
[374531722,1753339862511,-22470.28963999,0.000245,4]
[374531723,1753339862599,-460.0,0.00019178,2]
[374531724,1753339862609,-460.0,0.00019178,2]
[374531725,1753339862619,-145.84313857,0.00019452,2]
[374531726,1753339862637,-460.0,0.00019178,2]
[374531727,1753339862647,-314.15686143,0.00019452,2]
[374531728,1753339862657,-150.0,0.00022277,2]
[374531729,1753339862667,-429.4614264,0.00024466,2]
[374531730,1753339862676,-45145.73838304,0.000245,4]
[374531745,1753340350112,415.1922115,0.00017986,2]
[374531750,1753340732205,-150.0,0.00018376,2]
[374531751,1753340732231,-203.65036912,0.0001839,2]
[374531752,1753340732255,-228.12333979,0.00018485,2]
[374531753,1753340732282,-154.62392441,0.00018855,2]
[374531754,1753340732309,-171.45243897,0.00018951,2]
[374531755,1753340732335,-401.11742186,0.00018957,2]
[374531760,1753340815723,184.911496,0.00013699,2]
[374531762,1753340836388,-300.0,0.00018957,2]
[374531763,1753340836419,-300.0,0.00018957,2]
[374531764,1753340836446,-1200.0,0.00018958,2]
[374531765,1753340836474,-300.0,0.00018958,2]
[374531766,1753340836499,-799.0,0.00018958,2]
[374531767,1753340836524,-300.0,0.00018958,2]
[374531768,1753340843036,715.35414235,0.000189,2]
[374531769,1753340851079,-2719.85435682,0.00018959,2]
[374531770,1753340854202,-758.85381867,0.00018959,2]
[374531771,1753340861833,-6521.29182451,0.00018959,2]
[374531772,1753340861859,-185.45987389,0.00019,2]
[374531776,1753340892355,1861.76754248,0.00018954,2]
[374531777,1753340894850,-300.0,0.00019049,2]
[374531778,1753340898152,170.00609298,0.0001895,2]
[374531779,1753340906684,-10000.0,0.0001905,2]
[374531780,1753340909953,-10000.0,0.0001905,2]
[374531781,1753340910742,-10000.0,0.0001905,2]
[374531782,1753340911675,-10000.0,0.0001905,2]
[374531783,1753340916336,-10000.0,0.0001905,2]
[374531784,1753341027182,155.0,0.00024,120]
[374531785,1753341028556,155.0,0.000251,120]
[374531829,1753341032103,-300.0,0.00019048,2]
[374531831,1753341032113,-300.0,0.00019048,2]
[374531833,1753341032122,-141.26539315,0.00019048,2]
[374531835,1753341032134,-1058.73460685,0.00019048,2]
[374531837,1753341032143,-300.0,0.00019048,2]
[374531839,1753341032152,-500.0,0.00019049,2]
[374531840,1753341032161,-650.6765801,0.00019078,2]
[374531842,1753341032172,-7824.72819028,0.00019078,2]
[374531844,1753341032181,-701.89,0.00019168,3]
[374531846,1753341032191,-500.0,0.00019173,2]
[374531848,1753341032200,-500.0,0.00019173,2]
[374531850,1753341032209,-500.0,0.00019173,2]
[374531852,1753341032219,-500.0,0.00019173,2]
[374531853,1753341032228,-501.33081149,0.00019173,2]
[374531855,1753341032237,-501.89189803,0.00019173,2]
[374531857,1753341032247,-500.0,0.00019173,2]
[374531874,1753341032257,-500.0,0.00019173,2]
[374531876,1753341032387,-503.54914706,0.00019173,2]
[374531878,1753341032396,-500.59743783,0.00019173,2]
[374531880,1753341032405,-500.0,0.00019173,2]
[374531882,1753341032416,-500.0,0.00019173,2]
[374531884,1753341032425,-345.88719821,0.00019177,2]
[374531886,1753341032434,-460.0,0.00019178,2]
[374531888,1753341032444,-460.0,0.00019178,2]
[374531889,1753341032453,-460.0,0.00019178,2]
[374531891,1753341032463,-460.0,0.00019178,2]
[374531894,1753341032472,-460.0,0.00019178,2]
[374531895,1753341032482,-460.0,0.00019178,2]
[374531897,1753341032491,-460.0,0.00019178,2]
[374531899,1753341032500,-460.0,0.00019178,2]
[374531901,1753341032509,-460.0,0.00019178,2]
[374531903,1753341032519,-460.0,0.00019178,2]
[374531905,1753341032528,-460.0,0.00019178,2]
[374531907,1753341032538,-460.0,0.00019178,2]
[374531909,1753341032548,-460.0,0.00019178,2]
[374531911,1753341032558,-460.0,0.00019178,2]
[374531913,1753341032567,-460.0,0.00019178,2]
[374531915,1753341032577,-460.0,0.00019178,2]
[374531917,1753341032586,-460.0,0.00019178,2]
[374531919,1753341032595,-460.0,0.00019178,2]
[374531921,1753341032604,-277.8647664,0.00019178,2]
[374531923,1753341032614,-460.0,0.00019178,2]
[374531925,1753341032623,-460.0,0.00019178,2]
[374531927,1753341032632,-459.24784935,0.00019178,2]
[374531929,1753341032641,-460.0,0.00019178,2]
[374531931,1753341032651,-460.0,0.00019178,2]
[374531933,1753341032660,-460.0,0.00019178,2]
[374531935,1753341032670,-460.0,0.00019178,2]
[374531937,1753341032679,-460.0,0.00019178,2]
[374531939,1753341032688,-460.0,0.00019178,2]
[374531941,1753341032699,-460.0,0.00019178,2]
[374531943,1753341032717,-460.0,0.00019178,2]
[374531945,1753341032733,-460.0,0.00019178,2]
[374531947,1753341032746,-460.51803613,0.00019178,2]
[374531949,1753341032756,-460.0,0.00019178,2]
[374531951,1753341032765,-460.0,0.00019178,2]
[374531953,1753341032774,-460.63269461,0.00019178,2]
[374531955,1753341032785,-461.35879714,0.00019178,2]
[374531958,1753341032794,-460.0,0.00019178,2]
[374531960,1753341032804,-460.0,0.00019178,2]
[374531962,1753341032814,-511.22943217,0.00019178,2]
[374531964,1753341032823,-460.0,0.00019178,2]
[374531966,1753341032833,-460.0,0.00019178,2]
[374531968,1753341032842,-464.33088244,0.00019178,2]
[374531970,1753341032851,-460.0,0.00019178,2]
[374531972,1753341032860,-460.0,0.00019178,2]
[374531974,1753341032870,-460.0,0.00019178,2]
[374531976,1753341032879,-460.0,0.00019178,2]
[374531977,1753341032888,-461.06404439,0.00019178,2]
[374531979,1753341032897,-460.0,0.00019178,2]
[374531981,1753341032906,-152.5406515,0.00019178,2]
[374531983,1753341032915,-460.55459513,0.00019178,2]
[374531985,1753341032924,-460.0,0.00019178,2]
[374531987,1753341032934,-460.0,0.00019178,2]
[374531989,1753341032943,-460.0,0.00019178,2]
[374531991,1753341032952,-500.0,0.00019178,2]
[374531994,1753341032970,-461.50855468,0.00019178,2]
[374531996,1753341032982,-460.0,0.00019178,2]
[374531998,1753341032991,-460.0,0.00019178,2]
[374532000,1753341033002,-460.0,0.00019178,2]
[374532002,1753341033012,-460.0,0.00019178,2]
[374532005,1753341033025,-461.42057068,0.00019178,2]
[374532007,1753341033035,-437.81983444,0.00019178,2]
[374532009,1753341033046,-348.1456239,0.00019178,2]
[374532011,1753341033057,-460.0,0.00019178,2]
[374532013,1753341033067,-460.0,0.00019178,2]
[374532015,1753341033078,-460.0,0.00019178,2]
[374532017,1753341033089,-460.0,0.00019178,2]
[374532019,1753341033099,-460.0,0.00019178,2]
[374532021,1753341033109,-463.76648307,0.00019178,2]
[374532023,1753341033119,-460.0,0.00019178,2]
[374532025,1753341033130,-460.0,0.00019178,2]
[374532027,1753341033141,-506.33949685,0.00019178,2]
[374532029,1753341033152,-460.0,0.00019178,2]
[374532030,1753341033162,-289.04189171,0.00019178,2]
[374532032,1753341033172,-460.0,0.00019178,2]
[374532035,1753341033183,-423.62188996,0.00019178,2]
[374532037,1753341033193,-460.0,0.00019178,2]
[374532038,1753341033203,-460.0,0.00019178,2]
[374532039,1753341033213,-460.0,0.00019178,2]
[374532040,1753341033222,-460.0,0.00019178,2]
[374532041,1753341033232,-460.0,0.00019178,2]
[374532042,1753341033242,-492.98403766,0.00019178,2]
[374532043,1753341033251,-460.0,0.00019178,2]
[374532044,1753341033261,-460.0,0.00019178,2]
[374532045,1753341033274,-460.0,0.00019178,2]
[374532046,1753341033284,-460.0,0.00019178,2]
[374532047,1753341033294,-504.90166224,0.00019178,2]
[374532048,1753341033305,-460.0,0.00019178,2]
[374532049,1753341033315,-573.19673143,0.00019178,2]
[374532050,1753341033324,-444.53274329,0.00019178,2]
[374532051,1753341033334,-460.0,0.00019178,2]
[374532052,1753341033343,-460.0,0.00019178,2]
[374532053,1753341033353,-460.0,0.00019178,2]
[374532054,1753341033362,-460.0,0.00019178,2]
[374532055,1753341033373,-460.0,0.00019178,2]
[374532056,1753341033383,-460.0,0.00019178,2]
[374532057,1753341033392,-460.0,0.00019178,2]
[374532058,1753341033401,-460.0,0.00019178,2]
[374532059,1753341033411,-460.0,0.00019178,2]
[374532060,1753341033420,-504.43124956,0.00019178,2]
[374532061,1753341033430,-464.7501534,0.00019178,2]
[374532062,1753341033439,-460.0,0.00019178,2]
[374532063,1753341033449,-460.0,0.00019178,2]
[374532064,1753341033458,-460.0,0.00019178,2]
[374532065,1753341033468,-460.0,0.00019178,2]
[374532066,1753341033477,-460.0,0.00019178,2]
[374532067,1753341033487,-460.0,0.00019178,2]
[374532068,1753341033496,-460.0,0.00019178,2]
[374532069,1753341033506,-276.91248185,0.00019178,2]
[374532070,1753341033526,-183.79375977,0.00019178,2]
[374532071,1753341033536,-203.40624023,0.00019178,2]
[374532073,1753341033548,-256.59375977,0.00019178,2]
[374532074,1753341033558,-460.0,0.00019178,2]
[374532075,1753341033568,-350.26920044,0.00019178,2]
[374532077,1753341033578,-460.0,0.00019178,2]
[374532079,1753341033588,-216.01711023,0.00019178,2]
[374532081,1753341033597,-460.0,0.00019178,2]
[374532083,1753341033607,-460.0,0.00019178,2]
[374532085,1753341033617,-460.0,0.00019178,2]
[374532087,1753341033626,-460.0,0.00019178,2]
[374532089,1753341033636,-460.0,0.00019178,2]
[374532091,1753341033646,-461.1613966,0.00019178,2]
[374532093,1753341033655,-460.0,0.00019178,2]
[374532095,1753341033665,-460.0,0.00019178,2]
[374532097,1753341033675,-460.0,0.00019178,2]
[374532099,1753341033685,-460.0,0.00019178,2]
[374532101,1753341033694,-460.0,0.00019178,2]
[374532103,1753341033704,-460.0,0.00019178,2]
[374532106,1753341033720,-460.0,0.00019178,2]
[374532108,1753341033735,-460.0,0.00019178,2]
[374532111,1753341033753,-460.0,0.00019178,2]
[374532113,1753341033767,-460.0,0.00019178,2]
[374532115,1753341033781,-386.82955769,0.00019178,2]
[374532118,1753341033793,-460.0,0.00019178,2]
[374532120,1753341033803,-460.0,0.00019178,2]
[374532122,1753341033816,-460.0,0.00019178,2]
[374532124,1753341033830,-460.0,0.00019178,2]
[374532127,1753341033842,-596.20970849,0.00019178,2]
[374532129,1753341033855,-460.0,0.00019178,2]
[374532131,1753341033867,-460.0,0.00019178,2]
[374532134,1753341033880,-460.0,0.00019178,2]
[374532136,1753341033893,-460.0,0.00019178,2]
[374532138,1753341033905,-500.0,0.00019178,2]
[374532140,1753341033918,-460.0,0.00019178,2]
[374532142,1753341033931,-460.0,0.00019178,2]
[374532145,1753341033944,-460.0,0.00019178,2]
[374532147,1753341033958,-227.43223821,0.00019178,2]
[374532149,1753341033971,-460.0,0.00019178,2]
[374532151,1753341033983,-460.0,0.00019178,2]
[374532152,1753341033995,-462.37883308,0.00019178,2]
[374532153,1753341034009,-460.0,0.00019178,2]
[374532156,1753341034023,-460.0,0.00019178,2]
[374532158,1753341034037,-460.0,0.00019178,2]
[374532159,1753341034049,-460.0,0.00019178,2]
[374532160,1753341034063,-460.0,0.00019178,2]
[374532161,1753341034075,-460.0,0.00019178,2]
[374532162,1753341034087,-460.0,0.00019178,2]
[374532163,1753341034099,-460.0,0.00019178,2]
[374532164,1753341034109,-460.0,0.00019178,2]
[374532165,1753341034121,-460.0,0.00019178,2]
[374532166,1753341034133,-461.45031438,0.00019178,2]
[374532168,1753341034143,-460.0,0.00019178,2]
[374532170,1753341034155,-460.0,0.00019178,2]
[374532172,1753341034167,-460.0,0.00019178,2]
[374532173,1753341034180,-460.0,0.00019178,2]
[374532174,1753341034193,-460.0,0.00019178,2]
[374532175,1753341034206,-328.490059,0.00019178,2]
[374532176,1753341034219,-465.85290375,0.00019178,2]
[374532177,1753341034231,-517.2527241,0.00019178,2]
[374532179,1753341034243,-460.0,0.00019178,2]
[374532181,1753341034255,-460.0,0.00019178,2]
[374532182,1753341034268,-460.0,0.00019178,2]
[374532183,1753341034279,-460.0,0.00019178,2]
[374532184,1753341034290,-460.0,0.00019178,2]
[374532185,1753341034301,-460.0,0.00019178,2]
[374532186,1753341034311,-460.0,0.00019178,2]
[374532187,1753341034322,-500.0,0.00019178,2]
[374532188,1753341034334,-500.0,0.00019178,2]
[374532189,1753341034346,-500.0,0.00019178,2]
[374532190,1753341034359,-500.0,0.00019178,2]
[374532191,1753341034371,-179.24335359,0.00019178,2]
[374532192,1753341034383,-460.0,0.00019178,2]
[374532193,1753341034393,-460.0,0.00019178,2]
[374532194,1753341034403,-460.0,0.00019178,2]
[374532195,1753341034414,-460.0,0.00019178,2]
[374532196,1753341034426,-460.0,0.00019178,2]
[374532197,1753341034438,-460.0,0.00019178,2]
[374532198,1753341034450,-460.0,0.00019178,2]
[374532199,1753341034462,-460.0,0.00019178,2]
[374532200,1753341034472,-460.0,0.00019178,2]
[374532201,1753341034483,-460.0,0.00019178,2]
[374532202,1753341034493,-460.0,0.00019178,2]
[374532203,1753341034504,-460.0,0.00019178,2]
[374532204,1753341034515,-460.0,0.00019178,2]
[374532205,1753341034525,-460.0,0.00019178,2]
[374532206,1753341034537,-460.0,0.00019178,2]
[374532207,1753341034549,-460.0,0.00019178,2]
[374532208,1753341034561,-460.0,0.00019178,2]
[374532209,1753341034572,-460.0,0.00019178,2]
[374532210,1753341034582,-460.0,0.00019178,2]
[374532211,1753341034593,-333.58606783,0.00019178,2]
[374532212,1753341034604,-460.0,0.00019178,2]
[374532213,1753341034615,-460.0,0.00019178,2]
[374532214,1753341034626,-460.0,0.00019178,2]
[374532215,1753341034637,-460.0,0.00019178,2]
[374532216,1753341034649,-521.94795357,0.00019178,2]
[374532217,1753341034661,-460.0,0.00019178,2]
[374532218,1753341034672,-460.0,0.00019178,2]
[374532219,1753341034683,-460.0,0.00019178,2]
[374532220,1753341034694,-153.02142189,0.00019178,2]
[374532221,1753341034704,-460.0,0.00019178,2]
[374532222,1753341034715,-460.0,0.00019178,2]
[374532223,1753341034726,-460.0,0.00019178,2]
[374532224,1753341034739,-460.0,0.00019178,2]
[374532225,1753341034749,-460.0,0.00019178,2]
[374532226,1753341034761,-460.0,0.00019178,2]
[374532227,1753341034774,-460.0,0.00019178,2]
[374532228,1753341034786,-460.0,0.00019178,2]
[374532229,1753341034797,-460.0,0.00019178,2]
[374532230,1753341034808,-460.0,0.00019178,2]
[374532231,1753341034819,-460.0,0.00019178,2]
[374532232,1753341034829,-460.0,0.00019178,2]
[374532233,1753341034839,-460.0,0.00019178,2]
[374532234,1753341034851,-460.0,0.00019178,2]
[374532235,1753341034862,-460.0,0.00019178,2]
[374532236,1753341034872,-460.0,0.00019178,2]
[374532237,1753341034883,-460.0,0.00019178,2]
[374532238,1753341034894,-460.0,0.00019178,2]
[374532239,1753341034905,-460.0,0.00019178,2]
[374532240,1753341034917,-293.7130657,0.00019178,2]
[374532241,1753341034928,-460.0,0.00019178,2]
[374532242,1753341034938,-460.0,0.00019178,2]
[374532243,1753341034949,-460.0,0.00019178,2]
[374532244,1753341034960,-460.5124889,0.00019178,2]
[374532245,1753341034971,-460.0,0.00019178,2]
[374532246,1753341034981,-460.0,0.00019178,2]
[374532247,1753341034992,-460.0,0.00019178,2]
[374532248,1753341035003,-460.0,0.00019178,2]
[374532249,1753341035015,-460.0,0.00019178,2]
[374532250,1753341035026,-460.0,0.00019178,2]
[374532251,1753341035037,-460.0,0.00019178,2]
[374532252,1753341035049,-460.0,0.00019178,2]
[374532253,1753341035061,-460.0,0.00019178,2]
[374532254,1753341035072,-460.0,0.00019178,2]
[374532255,1753341035083,-460.0,0.00019178,2]
[374532256,1753341035094,-460.0,0.00019178,2]
[374532257,1753341035105,-460.0,0.00019178,2]
[374532258,1753341035116,-460.0,0.00019178,2]
[374532259,1753341035127,-203.35885752,0.00019178,2]
[374532260,1753341035138,-574.63526229,0.00019178,2]
[374532261,1753341035149,-460.0,0.00019178,2]
[374532262,1753341035159,-460.0,0.00019178,2]
[374532263,1753341035171,-438.82444632,0.00019178,2]
[374532264,1753341035182,-463.05861646,0.00019178,2]
[374532265,1753341035193,-460.0,0.00019178,2]
[374532266,1753341035204,-460.0,0.00019178,2]
[374532267,1753341035214,-460.0,0.00019178,2]
[374532268,1753341035223,-460.0,0.00019178,2]
[374532269,1753341035232,-424.88526047,0.00019178,2]
[374532270,1753341035242,-460.0,0.00019178,2]
[374532271,1753341035388,-460.0,0.00019178,2]
[374532272,1753341035406,-460.0,0.00019178,2]